fUSD/lending_fUSD_20251001
["ID","MTS","AMOUNT","RATE_DAILY","PERIOD"]
[388635749,1759281056276,-566.15,0.0002493,2]
[388635750,1759281056285,-4502.44,0.0002493,2]
[388635751,1759281056294,-5530.75,0.0002493,2]
[388635752,1759281056303,-18492.31,0.0002493,2]
[388635753,1759281056312,-1429.01,0.0002493,2]
[388635754,1759281056321,-6793.84,0.0002493,2]
[388635755,1759281056330,-1399.73,0.0002493,2]
[388635756,1759281056339,-20558.6,0.0002493,2]
[388635757,1759281056349,-36326.09,0.0002493,2]
[388635758,1759281056358,-6876.3,0.0002493,2]
[388635759,1759281056368,-500.0,0.0002493,2]
[388635760,1759281056377,-500.0,0.0002493,2]
[388635761,1759281056387,-500.0,0.0002493,2]
[388635762,1759281056397,-500.0,0.0002493,2]
[388635763,1759281056407,-3448.29,0.0002493,2]
[388635764,1759281056416,-150.0,0.0002493,2]
[388635765,1759281056425,-4138.34,0.0002493,2]
[388635766,1759281056434,-178.11,0.00024931,2]
[388635767,1759281056443,-1250.72,0.00024931,2]
[388635768,1759281056452,-500.0,0.00024931,2]
[388635769,1759281056461,-819.51,0.00024931,2]
[388635770,1759281056471,-614.81,0.00024931,2]
[388635771,1759281056480,-500.0,0.00024931,2]
[388635772,1759281056489,-860.27,0.00024931,2]
[388635773,1759281056498,-710.47,0.00024931,2]
[388635774,1759281056507,-500.0,0.00024931,2]
[388635775,1759281056516,-500.0,0.00024931,2]
[388635776,1759281056526,-500.0,0.00024931,2]
[388635777,1759281056536,-966.33,0.00024931,2]
[388635778,1759281056545,-500.0,0.00024931,2]
[388635779,1759281056554,-500.0,0.00024931,2]
[388635780,1759281056563,-869.08,0.00024931,2]
[388635781,1759281056572,-1882.04,0.00024931,2]
[388635782,1759281056581,-500.0,0.00024931,2]
[388635783,1759281056590,-2100.28,0.00024931,2]
[388635784,1759281056601,-500.0,0.00024931,2]
[388635785,1759281056612,-500.0,0.00024931,2]
[388635786,1759281056623,-500.0,0.00024931,2]
[388635787,1759281056634,-500.0,0.00024931,2]
[388635788,1759281056644,-500.0,0.00024931,2]
[388635789,1759281056653,-500.0,0.00024931,2]
[388635790,1759281056664,-540.91,0.00024931,2]
[388635791,1759281056672,-500.0,0.00024931,2]
[388635792,1759281056680,-500.0,0.00024931,2]
[388635793,1759281056688,-500.0,0.00024931,2]
[388635794,1759281056699,-500.0,0.00024931,2]
[388635795,1759281056707,-500.0,0.00024931,2]
[388635796,1759281056716,-869.76,0.00024931,2]
[388635797,1759281056724,-1618.66,0.00024931,2]
[388635798,1759281056732,-500.0,0.00024931,2]
[388635799,1759281056740,-2422.99,0.00024931,2]
[388635800,1759281056749,-500.0,0.00024931,2]
[388635801,1759281056758,-1822.02,0.00024931,2]
[388635802,1759281056766,-500.0,0.00024931,2]
[388635803,1759281056775,-500.0,0.00024931,2]
[388635804,1759281056784,-1012.66,0.00024931,2]
[388635805,1759281056793,-500.0,0.00024931,2]
[388635806,1759281056802,-500.0,0.00024931,2]
[388635807,1759281056811,-500.0,0.00024931,2]
[388635808,1759281056819,-1539.47,0.00024931,2]
[388635809,1759281056828,-500.0,0.00024931,2]
[388635810,1759281056836,-500.0,0.00024931,2]
[388635811,1759281056846,-1104.24,0.00024931,2]
[388635812,1759281056855,-1106.5,0.00024931,2]
[388635813,1759281056865,-500.0,0.00024931,2]
[388635814,1759281056874,-500.0,0.00024931,2]
[388635815,1759281056883,-500.0,0.00024931,2]
[388635816,1759281056892,-1017.08,0.00024931,2]
[388635817,1759281056901,-500.0,0.00024931,2]
[388635818,1759281056910,-885.25,0.00024931,2]
[388635819,1759281056919,-686.31,0.00024931,2]
[388635820,1759281056929,-500.0,0.00024931,2]
[388635821,1759281056938,-500.0,0.00024931,2]
[388635822,1759281056947,-500.0,0.00024931,2]
[388635823,1759281056956,-500.0,0.00024931,2]
[388635824,1759281056965,-1600.81,0.00024931,2]
[388635825,1759281056973,-500.0,0.00024931,2]
[388635826,1759281056982,-500.0,0.00024931,2]
[388635827,1759281056992,-500.0,0.00024931,2]
[388635828,1759281057001,-3276.28,0.00024931,2]
[388635829,1759281057011,-500.0,0.00024931,2]
[388635830,1759281057020,-2598.91,0.00024931,2]
[388635831,1759281057030,-579.73,0.00024931,2]
[388635832,1759281057040,-553.58,0.00024931,2]
[388635833,1759281057049,-1740.47,0.00024931,2]
[388635834,1759281057058,-642.68,0.00024931,2]
[388635835,1759281057067,-500.0,0.00024931,2]
[388635836,1759281057076,-500.0,0.00024931,2]
[388635837,1759281057086,-1008.96,0.00024931,2]
[388635838,1759281057096,-1353.7,0.00024931,2]
[388635839,1759281057105,-500.0,0.00024931,2]
[388635840,1759281057115,-563.79,0.00024931,2]
[388635841,1759281057126,-1790.63,0.00024931,2]
[388635842,1759281057137,-500.0,0.00024931,2]
[388635843,1759281057147,-3392.96,0.00024931,2]
[388635844,1759281057157,-500.0,0.00024931,2]
[388635845,1759281057166,-500.0,0.00024931,2]
[388635846,1759281057175,-572.05,0.00024931,2]
[388635847,1759281057185,-681.66,0.00024931,2]
[388635848,1759281057194,-500.0,0.00024931,2]
[388635849,1759281057203,-500.0,0.00024931,2]
[388635850,1759281057330,-668.73,0.00024931,2]
[388635851,1759281057352,-500.0,0.00024931,2]
[388635852,1759281057362,-3382.54,0.00024931,2]
[388635853,1759281057372,-500.0,0.00024931,2]
[388635854,1759281057381,-500.0,0.00024931,2]
[388635855,1759281057391,-500.0,0.00024931,2]
[388635856,1759281057400,-891.63,0.00024931,2]
[388635857,1759281057410,-500.0,0.00024931,2]
[388635858,1759281057420,-3235.16,0.00024931,2]
[388635859,1759281057430,-500.0,0.00024931,2]
[388635860,1759281057439,-500.0,0.00024931,2]
[388635861,1759281057449,-2892.11,0.00024931,2]
[388635862,1759281057459,-504.8,0.00024931,2]
[388635863,1759281057469,-1156.26,0.00024931,2]
[388635864,1759281057478,-3947.83,0.00024931,2]
[388635865,1759281057488,-654.37,0.00024931,2]
[388635866,1759281057497,-621.3,0.00024931,2]
[388635867,1759281057508,-1023.84,0.00024931,2]
[388635868,1759281057517,-500.0,0.00024931,2]
[388635869,1759281057528,-152.10110598,0.00024931,2]
[388635870,1759281057538,-1723.13,0.00024931,2]
[388635871,1759281057547,-2267.36,0.00024931,2]
[388635872,1759281057557,-500.0,0.00024931,2]
[388635873,1759281057567,-1474.11,0.00024931,2]
[388635874,1759281057576,-500.0,0.00024931,2]
[388635875,1759281057585,-2088.97,0.00024931,2]
[388635876,1759281057595,-500.0,0.00024931,2]
[388635877,1759281057606,-500.0,0.00024931,2]
[388635878,1759281057617,-500.0,0.00024931,2]
[388635879,1759281057632,-577.56,0.00024931,2]
[388635880,1759281057642,-151.0,0.00024931,7]
[388635881,1759281057652,-500.0,0.00024931,2]
[388635882,1759281057663,-4523.18,0.00024931,2]
[388635883,1759281057672,-4929.53,0.00024931,2]
[388635884,1759281057682,-2832.96,0.00024931,2]
[388635885,1759281057692,-2239.68,0.00024931,2]
[388635886,1759281057702,-500.0,0.00024931,2]
[388635887,1759281057711,-825.43,0.00024931,2]
[388635888,1759281057722,-500.0,0.00024931,2]
[388635889,1759281057733,-1352.85,0.00024931,2]
[388635890,1759281057744,-500.0,0.00024931,2]
[388635891,1759281057753,-500.0,0.00024931,2]
[388635892,1759281057763,-860.1,0.00024931,2]
[388635893,1759281057772,-892.38,0.00024931,2]
[388635894,1759281057781,-2341.11,0.00024931,2]
[388635895,1759281057790,-2824.36,0.00024931,2]
[388635896,1759281057799,-718.46,0.00024931,2]
[388635897,1759281057809,-709.51,0.00024931,2]
[388635898,1759281057819,-500.0,0.00024931,2]
[388635899,1759281057828,-3210.86,0.00024931,2]
[388635900,1759281057838,-543.0,0.00024931,2]
[388635901,1759281057848,-500.0,0.00024931,2]
[388635902,1759281057857,-748.59,0.00024931,2]
[388635903,1759281057866,-500.0,0.00024931,2]
[388635904,1759281057875,-541.28,0.00024931,2]
[388635905,1759281057886,-4199.68,0.00024931,2]
[388635906,1759281057896,-1314.79,0.00024931,2]
[388635907,1759281057906,-932.63,0.00024931,2]
[388635908,1759281057916,-2443.38,0.00024931,2]
[388635909,1759281057925,-541.6,0.00024931,2]
[388635910,1759281057935,-500.0,0.00024931,2]
[388635911,1759281057943,-4843.79,0.00024931,2]
[388635912,1759281057954,-4900.65,0.00024931,2]
[388635913,1759281057964,-500.0,0.00024931,2]
[388635914,1759281057973,-2697.61,0.00024931,2]
[388635915,1759281057982,-500.0,0.00024931,2]
[388635916,1759281057991,-500.0,0.00024931,2]
[388635917,1759281058001,-1211.68,0.00024931,2]
[388635918,1759281058011,-3067.08,0.00024931,2]
[388635919,1759281058021,-500.0,0.00024931,2]
[388635920,1759281058032,-500.0,0.00024931,2]
[388635921,1759281058042,-2223.5,0.00024931,2]
[388635922,1759281058052,-564.28,0.00024931,2]
[388635923,1759281058061,-1862.85,0.00024931,2]
[388635924,1759281058071,-1205.76,0.00024931,2]
[388635925,1759281058081,-1566.88,0.00024931,2]
[388635926,1759281058091,-500.0,0.00024931,2]
[388635927,1759281058101,-1643.81,0.00024931,2]
[388635928,1759281058111,-500.0,0.00024931,2]
[388635929,1759281058121,-3074.28,0.00024931,2]
[388635930,1759281058132,-500.0,0.00024931,2]
[388635931,1759281058141,-1763.09,0.00024931,2]
[388635932,1759281058150,-500.0,0.00024931,2]
[388635933,1759281058159,-751.6,0.00024931,2]
[388635934,1759281058169,-500.0,0.00024931,2]
[388635935,1759281058178,-500.0,0.00024931,2]
[388635936,1759281058188,-1196.53,0.00024931,2]
[388635937,1759281058197,-500.0,0.00024931,2]
[388635938,1759281058206,-3430.76,0.00024931,2]
[388635939,1759281058215,-500.0,0.00024931,2]
[388635940,1759281058225,-2809.98,0.00024931,2]
[388635941,1759281058235,-500.0,0.00024931,2]
[388635942,1759281058247,-3692.27,0.00024931,2]
[388635943,1759281058258,-500.0,0.00024931,2]
[388635944,1759281058267,-500.0,0.00024931,2]
[388635945,1759281058276,-500.0,0.00024931,2]
[388635946,1759281058287,-500.0,0.00024931,2]
[388635947,1759281058296,-500.0,0.00024931,2]
[388635948,1759281058306,-835.23,0.00024931,2]
[388635949,1759281058315,-500.0,0.00024931,2]
[388635950,1759281058325,-538.94,0.00024931,2]
[388635951,1759281058335,-500.0,0.00024931,2]
[388635952,1759281058344,-626.53,0.00024931,2]
[388635953,1759281058353,-500.0,0.00024931,2]
[388635954,1759281058363,-3263.93,0.00024931,2]
[388635955,1759281058372,-500.0,0.00024931,2]
[388635956,1759281058381,-500.0,0.00024931,2]
[388635957,1759281058393,-500.0,0.00024931,2]
[388635958,1759281058402,-841.47,0.00024931,2]
[388635959,1759281058412,-500.0,0.00024931,2]
[388635960,1759281058422,-552.47,0.00024931,2]
[388635961,1759281058432,-500.0,0.00024931,2]
[388635962,1759281058443,-500.0,0.00024931,2]
[388635963,1759281058452,-500.0,0.00024931,2]
[388635964,1759281058462,-648.16,0.00024931,2]
[388635965,1759281058472,-500.0,0.00024931,2]
[388635966,1759281058481,-500.0,0.00024931,2]
[388635967,1759281058491,-500.0,0.00024931,2]
[388635968,1759281058500,-500.0,0.00024931,2]
[388635969,1759281058510,-500.0,0.00024931,2]
[388635970,1759281058519,-500.0,0.00024931,2]
[388635971,1759281058529,-1612.62,0.00024931,2]
[388635972,1759281058539,-2203.49,0.00024931,2]
[388635973,1759281058549,-500.0,0.00024931,2]
[388635974,1759281058559,-500.0,0.00024931,2]
[388635975,1759281058569,-954.54,0.00024931,2]
[388635976,1759281058579,-678.55,0.00024931,2]
[388635977,1759281058588,-6377.85,0.00024931,2]
[388635978,1759281058597,-1562.61,0.00024931,2]
[388635979,1759281058606,-3430.33,0.00024931,2]
[388635980,1759281058616,-579.16,0.00024931,2]
[388635981,1759281058629,-500.0,0.00024931,2]
[388635982,1759281058639,-875.05,0.00024931,2]
[388635983,1759281058648,-922.15,0.00024931,2]
[388635984,1759281058657,-1667.94,0.00024931,2]
[388635985,1759281058667,-500.0,0.00024931,2]
[388635986,1759281058676,-500.0,0.00024931,2]
[388635987,1759281058686,-500.0,0.00024931,2]
[388635988,1759281058697,-1882.54,0.00024931,2]
[388635989,1759281058706,-791.72,0.00024931,2]
[388635990,1759281058716,-500.0,0.00024931,2]
[388635991,1759281058725,-500.0,0.00024931,2]
[388635992,1759281058736,-500.0,0.00024931,2]
[388635993,1759281058745,-500.0,0.00024931,2]
[388635994,1759281058754,-1243.17,0.00024931,2]
[388635995,1759281058764,-500.0,0.00024931,2]
[388635996,1759281058773,-500.0,0.00024931,2]
[388635997,1759281058783,-1320.88,0.00024931,2]
[388635998,1759281058792,-500.0,0.00024931,2]
[388635999,1759281058801,-4492.44,0.00024931,2]
[388636000,1759281058811,-1615.73,0.00024931,2]
[388636001,1759281058820,-4130.9,0.00024931,2]
[388636002,1759281058829,-500.0,0.00024931,2]
[388636003,1759281058838,-500.0,0.00024931,2]
[388636004,1759281058848,-599.32,0.00024931,2]
[388636005,1759281058858,-500.0,0.00024931,2]
[388636006,1759281058867,-500.0,0.00024931,2]
[388636007,1759281058877,-500.0,0.00024931,2]
[388636008,1759281058887,-500.0,0.00024931,2]
[388636009,1759281058896,-500.0,0.00024931,2]
[388636010,1759281058906,-1125.03,0.00024931,2]
[388636011,1759281058915,-4235.94,0.00024931,2]
[388636012,1759281058924,-5245.43,0.00024931,2]
[388636013,1759281058933,-500.0,0.00024931,2]
[388636014,1759281058943,-500.0,0.00024931,2]
[388636015,1759281058952,-4637.37,0.00024931,2]
[388636016,1759281058962,-500.0,0.00024931,2]
[388636017,1759281058971,-500.0,0.00024931,2]
[388636018,1759281058980,-500.0,0.00024931,2]
[388636019,1759281058990,-500.0,0.00024931,2]
[388636020,1759281058999,-500.0,0.00024931,2]
[388636021,1759281059009,-500.0,0.00024931,2]
[388636022,1759281059019,-834.03,0.00024931,2]
[388636023,1759281059028,-500.0,0.00024931,2]
[388636024,1759281059037,-500.0,0.00024931,2]
[388636025,1759281059047,-500.0,0.00024931,2]
[388636026,1759281059057,-500.0,0.00024931,2]
[388636027,1759281059066,-500.0,0.00024931,2]
[388636028,1759281059076,-626.87,0.00024931,2]
[388636029,1759281059090,-1511.27,0.00024931,2]
[388636030,1759281059099,-3468.67,0.00024931,2]
[388636031,1759281059109,-2829.48,0.00024931,2]
[388636032,1759281059118,-1789.29,0.00024931,2]
[388636033,1759281059128,-500.0,0.00024931,2]
[388636034,1759281059139,-500.0,0.00024931,2]
[388636035,1759281059148,-500.0,0.00024931,2]
[388636036,1759281059158,-500.0,0.00024931,2]
[388636037,1759281059167,-500.0,0.00024931,2]
[388636038,1759281059177,-500.0,0.00024931,2]
[388636039,1759281059187,-500.0,0.00024931,2]
[388636040,1759281059196,-500.0,0.00024931,2]
[388636041,1759281059206,-4173.83,0.00024931,2]
[388636042,1759281059216,-5454.5,0.00024931,2]
[388636043,1759281059225,-500.0,0.00024931,2]
[388636044,1759281059234,-500.0,0.00024931,2]
[388636045,1759281059244,-877.71,0.00024931,2]
[388636046,1759281059254,-1984.95,0.00024931,2]
[388636047,1759281059263,-500.0,0.00024931,2]
[388636048,1759281059272,-2608.17,0.00024931,2]
[388636049,1759281059282,-500.0,0.00024931,2]
[388636050,1759281059292,-831.24,0.00024931,2]
[388636051,1759281059306,-3440.2,0.00024931,2]
[388636052,1759281059316,-500.0,0.00024931,2]
[388636053,1759281059325,-500.0,0.00024931,2]
[388636054,1759281059334,-485.30627217,0.00024931,2]
[388636055,1759281059343,-1132.59,0.00024931,2]
[388636056,1759281059352,-1072.39239955,0.00024931,2]
[388636057,1759281059387,-2312.85760045,0.00024931,2]
[388636058,1759281059399,-500.0,0.00024931,2]
[388636059,1759281059409,-500.0,0.00024931,2]
[388636060,1759281059419,-500.0,0.00024931,2]
[388636061,1759281059428,-500.0,0.00024931,2]
[388636062,1759281059437,-500.0,0.00024931,2]
[388636063,1759281059446,-405.37114869,0.00024931,2]
[388636064,1759281059455,-3209.94,0.00024931,2]
[388636065,1759281059467,-500.0,0.00024931,2]
[388636066,1759281059482,-948.57,0.00024931,2]
[388636067,1759281059492,-4647.81,0.00024931,2]
[388636068,1759281059501,-830.0,0.00024931,2]
[388636069,1759281059511,-500.0,0.00024931,2]
[388636070,1759281059520,-500.0,0.00024931,2]
[388636071,1759281059529,-3109.51,0.00024931,2]
[388636072,1759281059863,-500.0,0.00024931,2]
[388636073,1759281059878,-1868.05,0.00024931,2]
[388636074,1759281059888,-1697.03,0.00024931,2]
[388636075,1759281059897,-500.0,0.00024931,2]
[388636076,1759281059906,-2635.32,0.00024931,2]
[388636077,1759281059915,-500.0,0.00024931,2]
[388636078,1759281059924,-2195.66,0.00024931,2]
[388636079,1759281059934,-500.0,0.00024931,2]
[388636080,1759281059943,-512.15,0.00024931,2]
[388636081,1759281059953,-2080.43,0.00024931,2]
[388636082,1759281059962,-4035.32,0.00024931,2]
[388636083,1759281059971,-500.0,0.00024931,2]
[388636084,1759281059980,-500.0,0.00024931,2]
[388636085,1759281059989,-500.0,0.00024931,2]
[388636086,1759281059998,-500.0,0.00024931,2]
[388636087,1759281060007,-500.0,0.00024931,2]
[388636088,1759281060018,-1007.29,0.00024931,2]
[388636089,1759281060028,-500.0,0.00024931,2]
[388636090,1759281060037,-500.0,0.00024931,2]
[388636091,1759281060047,-4337.34,0.00024931,2]
[388636092,1759281060056,-500.0,0.00024931,2]
[388636093,1759281060066,-500.0,0.00024931,2]
[388636094,1759281060076,-1803.17,0.00024931,2]
[388636095,1759281060085,-512.27,0.00024931,2]
[388636096,1759281060094,-347.886864,0.00024931,2]
[388636097,1759281060104,-4703.64,0.00024931,2]
[388636098,1759281060113,-1086.37,0.00024931,2]
[388636099,1759281060122,-237.58863196,0.00024931,2]
[388636100,1759281060131,-583.2,0.00024931,2]
[388636101,1759281060141,-5038.55,0.00024931,2]
[388636102,1759281060150,-500.0,0.00024931,2]
[388636103,1759281060160,-500.0,0.00024931,2]
[388636104,1759281060169,-500.0,0.00024931,2]
[388636105,1759281060179,-500.0,0.00024931,2]
[388636106,1759281060189,-2706.86,0.00024931,2]
[388636107,1759281060198,-500.0,0.00024931,2]
[388636108,1759281060207,-652.86,0.00024931,2]
[388636109,1759281060216,-500.0,0.00024931,2]
[388636110,1759281060226,-500.0,0.00024931,2]
[388636111,1759281060235,-500.0,0.00024931,2]
[388636112,1759281060245,-500.0,0.00024931,2]
[388636113,1759281060254,-4514.02781,0.00024931,2]
[388636114,1759281060263,-3762.72,0.00024931,2]
[388636115,1759281060273,-500.0,0.00024931,2]
[388636116,1759281060282,-3623.38,0.00024931,2]
[388636117,1759281060291,-500.0,0.00024931,2]
[388636118,1759281060300,-500.0,0.00024931,2]
[388636119,1759281060309,-1252.19,0.00024931,2]
[388636120,1759281060319,-2257.283832,0.00024931,2]
[388636121,1759281060328,-500.0,0.00024931,2]
[388636122,1759281060337,-500.0,0.00024931,2]
[388636123,1759281060346,-500.0,0.00024931,2]
[388636124,1759281060356,-500.0,0.00024931,2]
[388636125,1759281060365,-500.0,0.00024931,2]
[388636126,1759281060375,-3999.45,0.00024931,2]
[388636127,1759281060384,-500.0,0.00024931,2]
[388636128,1759281060394,-543.06263303,0.00024931,2]
[388636129,1759281060403,-3860.82,0.00024931,2]
[388636130,1759281060413,-500.0,0.00024931,2]
[388636131,1759281060422,-500.0,0.00024931,2]
[388636132,1759281060431,-500.0,0.00024931,2]
[388636133,1759281060441,-500.0,0.00024931,2]
[388636134,1759281060450,-500.0,0.00024931,2]
[388636135,1759281060460,-500.0,0.00024931,2]
[388636136,1759281060470,-3911.55,0.00024931,2]
[388636137,1759281060479,-1919.76,0.00024931,2]
[388636138,1759281060488,-664.87,0.00024931,2]
[388636139,1759281060498,-500.0,0.00024931,2]
[388636140,1759281060507,-3031.79,0.00024931,2]
[388636141,1759281060517,-500.0,0.00024931,2]
[388636142,1759281060526,-4416.89,0.00024931,2]
[388636143,1759281060535,-500.0,0.00024931,2]
[388636144,1759281060544,-500.0,0.00024931,2]
[388636145,1759281060554,-500.0,0.00024931,2]
[388636146,1759281060563,-666.02,0.00024931,2]
[388636147,1759281060573,-974.56,0.00024931,2]
[388636148,1759281060582,-3419.6,0.00024931,2]
[388636149,1759281060592,-917.75,0.00024931,2]
[388636150,1759281060601,-2300.88,0.00024931,2]
[388636151,1759281060610,-500.0,0.00024931,2]
[388636152,1759281060623,-3132.05,0.00024931,2]
[388636153,1759281060632,-5234.634726,0.00024931,2]
[388636154,1759281060643,-3291.93,0.00024931,2]
[388636155,1759281060652,-1823.85,0.00024931,2]
[388636156,1759281060663,-500.0,0.00024931,2]
[388636157,1759281060671,-601.54584708,0.00024931,2]
[388636158,1759281060681,-2818.94,0.00024931,2]
[388636159,1759281060691,-1050.77,0.00024931,2]
[388636160,1759281060703,-297.95607191,0.00024931,2]
[388636161,1759281060712,-150.820849,0.00024931,2]
[388636162,1759281060722,-864.17,0.00024931,2]
[388636163,1759281060732,-2973.2,0.00024931,2]
[388636164,1759281060741,-986.95,0.00024931,2]
[388636165,1759281060750,-500.0,0.00024931,2]
[388636166,1759281060760,-2644.97,0.00024931,2]
[388636167,1759281060769,-3681.2,0.00024931,2]
[388636168,1759281060778,-500.0,0.00024931,2]
[388636169,1759281060788,-500.0,0.00024931,2]
[388636170,1759281060806,-500.0,0.00024931,2]
[388636171,1759281060815,-3299.96,0.00024931,2]
[388636172,1759281060825,-500.0,0.00024931,2]
[388636173,1759281060835,-726.54,0.00024931,2]
[388636174,1759281060844,-500.0,0.00024931,2]
[388636175,1759281060855,-244.34614489,0.00024931,2]
[388636176,1759281060865,-1802.88,0.00024931,2]
[388636177,1759281060874,-500.0,0.00024931,2]
[388636178,1759281060883,-2430.23,0.00024931,2]
[388636179,1759281060895,-1767.04,0.00024931,2]
[388636180,1759281060904,-500.0,0.00024931,2]
[388636181,1759281060914,-500.0,0.00024931,2]
[388636182,1759281060923,-4000.53,0.00024931,2]
[388636183,1759281060932,-930.25,0.00024931,2]
[388636184,1759281060942,-1836.44,0.00024931,2]
[388636185,1759281060951,-500.0,0.00024931,2]
[388636186,1759281060960,-1142.62,0.00024931,2]
[388636187,1759281060970,-2743.72,0.00024931,2]
[388636188,1759281060979,-909.87,0.00024931,2]
[388636189,1759281060988,-560.79,0.00024931,2]
[388636190,1759281060998,-500.0,0.00024931,2]
[388636191,1759281061008,-170.42727205,0.00024931,2]
[388636192,1759281061018,-500.0,0.00024931,2]
[388636193,1759281061028,-5055.9,0.00024931,2]
[388636194,1759281061038,-2208.99,0.00024931,2]
[388636195,1759281061048,-566.04,0.00024931,2]
[388636196,1759281061057,-500.0,0.00024931,2]
[388636197,1759281061066,-500.0,0.00024931,2]
[388636198,1759281061075,-500.0,0.00024931,2]
[388636199,1759281061084,-500.0,0.00024931,2]
[388636200,1759281061093,-500.0,0.00024931,2]
[388636201,1759281061103,-500.0,0.00024931,2]
[388636202,1759281061112,-500.0,0.00024931,2]
[388636203,1759281061121,-2520.14,0.00024931,2]
[388636204,1759281061130,-2859.95,0.00024931,2]
[388636205,1759281061142,-500.0,0.00024931,2]
[388636206,1759281061151,-500.0,0.00024931,2]
[388636207,1759281061161,-1568.55,0.00024931,2]
[388636208,1759281061171,-500.0,0.00024931,2]
[388636209,1759281061181,-500.0,0.00024931,2]
[388636210,1759281061191,-4132.86,0.00024931,2]
[388636211,1759281061201,-500.0,0.00024931,2]
[388636212,1759281061210,-500.0,0.00024931,2]
[388636213,1759281061219,-2721.52,0.00024931,2]
[388636214,1759281061228,-500.0,0.00024931,2]
[388636215,1759281061237,-500.0,0.00024931,2]
[388636216,1759281061247,-2604.95,0.00024931,2]
[388636217,1759281061258,-500.0,0.00024931,2]
[388636218,1759281061267,-1024.52,0.00024931,2]
[388636219,1759281061276,-500.0,0.00024931,2]
[388636220,1759281061285,-500.0,0.00024931,2]
[388636221,1759281061295,-500.0,0.00024931,2]
[388636222,1759281061305,-500.0,0.00024931,2]
[388636223,1759281061314,-500.0,0.00024931,2]
[388636224,1759281061326,-500.0,0.00024931,2]
[388636225,1759281061335,-3590.1,0.00024931,2]
[388636226,1759281061343,-500.0,0.00024931,2]
[388636227,1759281061352,-500.0,0.00024931,2]
[388636228,1759281061361,-3344.39,0.00024931,2]
[388636229,1759281061370,-500.0,0.00024931,2]
[388636230,1759281061380,-615.91455477,0.00024931,2]
[388636231,1759281061391,-2808.19,0.00024931,2]
[388636232,1759281061400,-864.08,0.00024931,2]
[388636233,1759281061409,-500.0,0.00024931,2]
[388636234,1759281061419,-722.16,0.00024931,2]
[388636235,1759281061430,-500.0,0.00024931,2]
[388636236,1759281061439,-500.0,0.00024931,2]
[388636237,1759281061448,-500.0,0.00024931,2]
[388636238,1759281061459,-1425.11,0.00024931,2]
[388636239,1759281061470,-500.0,0.00024931,2]
[388636240,1759281061479,-3765.78,0.00024931,2]
[388636241,1759281061488,-500.0,0.00024931,2]
[388636242,1759281061498,-500.0,0.00024931,2]
[388636243,1759281061508,-500.0,0.00024931,2]
[388636244,1759281061518,-1924.3,0.00024931,2]
[388636245,1759281061527,-500.0,0.00024931,2]
[388636246,1759281061543,-500.0,0.00024931,2]
[388636247,1759281061559,-500.0,0.00024931,2]
[388636248,1759281061568,-500.0,0.00024931,2]